[Event "Late-Titled-Tuesday-Blitz-May-28-2024"]
[Site "Chess.com"]
[Date "2024.05.28"]
[Round "11"]
[White "AlexeiShirov"]
[Black "lachesisQ"]
[Result "1/2-1/2"]
[WhiteElo "2934"]
[BlackElo "3060"]
[TimeControl "180+1"]
[EndTime "16:06:05 PDT"]
[Termination "Game drawn by repetition"]

1. e4 {[%clk 0:03:00.9]} 1... Nf6 {[%clk 0:03:00.9]} 2. e5 {[%clk 0:02:59.7]}
2... Nd5 {[%clk 0:03:01]} 3. d4 {[%clk 0:02:59.5]} 3... d6 {[%clk 0:03:00.4]} 4.
c4 {[%clk 0:02:59.2]} 4... Nb6 {[%clk 0:03:00.3]} 5. f4 {[%clk 0:02:58.6]} 5...
Bf5 {[%clk 0:02:56.8]} 6. Nc3 {[%clk 0:02:52.7]} 6... e6 {[%clk 0:02:56]} 7. Nf3
{[%clk 0:02:49.3]} 7... Nc6 {[%clk 0:02:56]} 8. Be3 {[%clk 0:02:46.5]} 8... Be7
{[%clk 0:02:54.3]} 9. Be2 {[%clk 0:02:32.5]} 9... dxe5 {[%clk 0:02:53.1]} 10.
fxe5 {[%clk 0:02:31.8]} 10... O-O {[%clk 0:02:53.4]} 11. O-O {[%clk 0:02:31.3]}
11... f6 {[%clk 0:02:53]} 12. exf6 {[%clk 0:02:27]} 12... Bxf6 {[%clk
0:02:53.9]} 13. Kh1 {[%clk 0:02:21.5]} 13... Qe8 {[%clk 0:02:53.1]} 14. Qd2
{[%clk 0:02:14.4]} 14... Rd8 {[%clk 0:02:52.7]} 15. Rad1 {[%clk 0:02:12.4]}
15... Qg6 {[%clk 0:02:51.6]} 16. Qe1 {[%clk 0:01:57.9]} 16... Nb4 {[%clk
0:02:41.7]} 17. Nh4 {[%clk 0:01:52.1]} 17... Bxh4 {[%clk 0:02:41.3]} 18. Qxh4
{[%clk 0:01:51.2]} 18... h6 {[%clk 0:02:13]} 19. b3 {[%clk 0:01:47]} 19... Bd3
{[%clk 0:02:09.8]} 20. Bh5 {[%clk 0:01:38.3]} 20... Qh7 {[%clk 0:02:01.4]} 21.
Rxf8+ {[%clk 0:01:28.4]} 21... Rxf8 {[%clk 0:02:02.3]} 22. Qe7 {[%clk 0:01:27]}
22... Qf5 {[%clk 0:01:50.7]} 23. Qxb4 {[%clk 0:01:17]} 23... Bc2 {[%clk
0:01:19.9]} 24. Bf3 {[%clk 0:01:04.5]} 24... Bxd1 {[%clk 0:01:18.4]} 25. Nxd1
{[%clk 0:01:03.6]} 25... Qd3 {[%clk 0:01:09.2]} 26. Qe1 {[%clk 0:01:02.5]} 26...
c6 {[%clk 0:01:02.9]} 27. h3 {[%clk 0:00:50]} 27... Nd7 {[%clk 0:01:02.5]} 28.
Qe2 {[%clk 0:00:48.2]} 28... Qb1 {[%clk 0:01:02.2]} 29. Kh2 {[%clk 0:00:47.8]}
29... e5 {[%clk 0:01:00.9]} 30. Nf2 {[%clk 0:00:45.4]} 30... Qg6 {[%clk
0:00:55.1]} 31. Be4 {[%clk 0:00:42.8]} 31... Qf7 {[%clk 0:00:53.8]} 32. d5
{[%clk 0:00:42.6]} 32... Nf6 {[%clk 0:00:53]} 33. dxc6 {[%clk 0:00:41.5]} 33...
Nxe4 {[%clk 0:00:52.6]} 34. Nxe4 {[%clk 0:00:41.3]} 34... bxc6 {[%clk
0:00:53.1]} 35. Bf2 {[%clk 0:00:41.3]} 35... a5 {[%clk 0:00:47.5]} 36. Bg3
{[%clk 0:00:41.3]} 36... Qg6 {[%clk 0:00:46.6]} 37. Nf2 {[%clk 0:00:38.9]} 37...
Re8 {[%clk 0:00:38.1]} 38. Ng4 {[%clk 0:00:34.5]} 38... e4 {[%clk 0:00:38.1]}
39. Qd2 {[%clk 0:00:33.2]} 39... Qe6 {[%clk 0:00:35]} 40. Ne3 {[%clk 0:00:31.9]}
40... Ra8 {[%clk 0:00:20.5]} 41. Qd4 {[%clk 0:00:29.8]} 41... Qe7 {[%clk
0:00:17]} 42. c5 {[%clk 0:00:28.6]} 42... Rd8 {[%clk 0:00:15.9]} 43. Bd6 {[%clk
0:00:27.2]} 43... Qe6 {[%clk 0:00:16.3]} 44. Nc4 {[%clk 0:00:25.7]} 44... Re8
{[%clk 0:00:15.6]} 45. Qe3 {[%clk 0:00:25.6]} 45... Qd5 {[%clk 0:00:15.1]} 46.
Nxa5 {[%clk 0:00:25]} 46... Qd3 {[%clk 0:00:15.1]} 47. Nc4 {[%clk 0:00:24.7]}
47... Qc2 {[%clk 0:00:14.7]} 48. a4 {[%clk 0:00:23.7]} 48... Re6 {[%clk
0:00:15]} 49. a5 {[%clk 0:00:21.2]} 49... Rg6 {[%clk 0:00:13.3]} 50. Bg3 {[%clk
0:00:20.9]} 50... Rf6 {[%clk 0:00:12.3]} 51. Nd6 {[%clk 0:00:20.7]} 51... Rf1
{[%clk 0:00:03.3]} 52. Qxe4 {[%clk 0:00:20.2]} 52... Qd1 {[%clk 0:00:03.4]} 53.
Qe6+ {[%clk 0:00:20.1]} 53... Kh7 {[%clk 0:00:02.7]} 54. Qe4+ {[%clk 0:00:20.2]}
54... Kg8 {[%clk 0:00:02.7]} 55. Qe6+ {[%clk 0:00:20.2]} 55... Kh7 {[%clk
0:00:02.8]} 56. Qe4+ {[%clk 0:00:19]} 56... Kg8 {[%clk 0:00:02.8]} 1/2-1/2

[Event "Late-Titled-Tuesday-Blitz-May-28-2024"]
[Site "Chess.com"]
[Date "2024.05.28"]
[Round "11"]
[White "Timurist"]
[Black "Mariia89"]
[Result "0-1"]
[WhiteElo "2393"]
[BlackElo "2249"]
[TimeControl "180+1"]
[EndTime "16:06:05 PDT"]
[Termination "Mariia89 won by checkmate"]

1. e4 {[%clk 0:03:00.9]} 1... c6 {[%clk 0:02:57.5]} 2. d4 {[%clk 0:03:00.7]}
2... d5 {[%clk 0:02:58.4]} 3. exd5 {[%clk 0:03:01.5]} 3... cxd5 {[%clk
0:02:58.7]} 4. Bd3 {[%clk 0:03:02.1]} 4... Nf6 {[%clk 0:02:59.3]} 5. c3 {[%clk
0:03:02.3]} 5... Bg4 {[%clk 0:02:59.1]} 6. Qb3 {[%clk 0:03:01.8]} 6... Qb6
{[%clk 0:02:58.8]} 7. Bf4 {[%clk 0:03:02]} 7... Nc6 {[%clk 0:02:58.2]} 8. Nd2
{[%clk 0:03:01.6]} 8... e6 {[%clk 0:02:57.1]} 9. Ngf3 {[%clk 0:03:01.8]} 9...
Be7 {[%clk 0:02:57.2]} 10. O-O {[%clk 0:03:00.8]} 10... O-O {[%clk 0:02:57.4]}
11. Ne5 {[%clk 0:02:58.6]} 11... Nxe5 {[%clk 0:02:52.6]} 12. Bxe5 {[%clk
0:02:53]} 12... Bh5 {[%clk 0:02:32.2]} 13. f4 {[%clk 0:02:32]} 13... Bg6 {[%clk
0:02:13.4]} 14. f5 {[%clk 0:02:32.2]} 14... exf5 {[%clk 0:02:13.4]} 15. Bxf5
{[%clk 0:02:33.1]} 15... Bxf5 {[%clk 0:01:56.1]} 16. Rxf5 {[%clk 0:02:32.2]}
16... Nd7 {[%clk 0:01:48]} 17. Bg3 {[%clk 0:02:22]} 17... Qg6 {[%clk 0:01:04.9]}
18. Qxd5 {[%clk 0:02:16.3]} 18... Nb6 {[%clk 0:01:02.7]} 19. Qf3 {[%clk
0:02:11.7]} 19... Rfe8 {[%clk 0:00:54.3]} 20. Rf1 {[%clk 0:01:55.5]} 20... Bf6
{[%clk 0:00:51.2]} 21. Qxb7 {[%clk 0:01:53.4]} 21... Re2 {[%clk 0:00:32.7]} 22.
Nc4 {[%clk 0:01:48.6]} 22... Rae8 {[%clk 0:00:29]} 23. Nxb6 {[%clk 0:01:26.5]}
23... axb6 {[%clk 0:00:28.6]} 24. Qxb6 {[%clk 0:01:23.5]} 24... h5 {[%clk
0:00:23.7]} 25. Rxf6 {[%clk 0:00:56.3]} 25... gxf6 {[%clk 0:00:19.5]} 26. Qxf6
{[%clk 0:00:57.2]} 26... Qxf6 {[%clk 0:00:19.1]} 27. Rxf6 {[%clk 0:00:58.1]}
27... Rxb2 {[%clk 0:00:19.6]} 28. c4 {[%clk 0:00:38.7]} 28... Ree2 {[%clk
0:00:18.7]} 29. Rf2 {[%clk 0:00:35.3]} 29... Re1+ {[%clk 0:00:10.3]} 30. Rf1
{[%clk 0:00:35.4]} 30... Ree2 {[%clk 0:00:10.9]} 31. Bf2 {[%clk 0:00:35.2]}
31... Rxa2 {[%clk 0:00:09.5]} 32. d5 {[%clk 0:00:32.6]} 32... Rac2 {[%clk
0:00:06.3]} 33. c5 {[%clk 0:00:32.8]} 33... Red2 {[%clk 0:00:05]} 34. d6 {[%clk
0:00:33.4]} 34... Kg7 {[%clk 0:00:04]} 35. g3 {[%clk 0:00:31.3]} 35... Kg6
{[%clk 0:00:03.4]} 36. h4 {[%clk 0:00:21.7]} 36... f5 {[%clk 0:00:03.1]} 37. d7
{[%clk 0:00:07.5]} 37... Rxd7 {[%clk 0:00:02.5]} 38. Re1 {[%clk 0:00:06.7]}
38... Rdd2 {[%clk 0:00:02.2]} 39. Re6+ {[%clk 0:00:06.8]} 39... Kf7 {[%clk
0:00:02.6]} 40. Rh6 {[%clk 0:00:04.9]} 40... Rxf2 {[%clk 0:00:02.5]} 41. Rxh5
{[%clk 0:00:05.6]} 41... Rg2+ {[%clk 0:00:02.6]} 42. Kf1 {[%clk 0:00:05.9]}
42... Rh2 {[%clk 0:00:02.3]} 43. Rxf5+ {[%clk 0:00:06.3]} 43... Ke6 {[%clk
0:00:02.4]} 44. Rg5 {[%clk 0:00:07.2]} 44... Rh1# {[%clk 0:00:02.5]} 0-1

[Event "Late-Titled-Tuesday-Blitz-May-28-2024"]
[Site "Chess.com"]
[Date "2024.05.28"]
[Round "11"]
[White "Statham_01"]
[Black "maximnovik"]
[Result "1-0"]
[WhiteElo "2703"]
[BlackElo "2568"]
[TimeControl "180+1"]
[EndTime "16:06:06 PDT"]
[Termination "Statham_01 won by resignation"]

1. e4 {[%clk 0:03:00.9]} 1... c6 {[%clk 0:02:59.1]} 2. d4 {[%clk 0:03:00.4]}
2... d5 {[%clk 0:03:00]} 3. exd5 {[%clk 0:02:59.7]} 3... cxd5 {[%clk 0:03:00.2]}
4. Nf3 {[%clk 0:03:00.4]} 4... Nf6 {[%clk 0:02:59.8]} 5. c4 {[%clk 0:03:00.8]}
5... g6 {[%clk 0:02:59.5]} 6. Nc3 {[%clk 0:03:00.7]} 6... Bg7 {[%clk 0:02:59.8]}
7. cxd5 {[%clk 0:03:01.1]} 7... Nxd5 {[%clk 0:02:59.5]} 8. Bc4 {[%clk
0:03:01.6]} 8... Nxc3 {[%clk 0:02:59.8]} 9. bxc3 {[%clk 0:03:01.9]} 9... Qc7
{[%clk 0:03:00.4]} 10. Qe2 {[%clk 0:02:45.9]} 10... O-O {[%clk 0:02:53.9]} 11.
O-O {[%clk 0:02:44.7]} 11... Bg4 {[%clk 0:02:53.2]} 12. Bb3 {[%clk 0:02:28.7]}
12... Qxc3 {[%clk 0:02:51.2]} 13. Be3 {[%clk 0:02:25.2]} 13... Nc6 {[%clk
0:02:47.7]} 14. Rac1 {[%clk 0:02:17.5]} 14... Bxf3 {[%clk 0:02:38.6]} 15. Qxf3
{[%clk 0:02:13]} 15... Nxd4 {[%clk 0:02:18.9]} 16. Qd1 {[%clk 0:01:49.7]} 16...
Qb2 {[%clk 0:02:09.7]} 17. Rb1 {[%clk 0:01:39.9]} 17... Ne2+ {[%clk 0:02:09.2]}
18. Kh1 {[%clk 0:01:37.3]} 18... Nc3 {[%clk 0:02:09]} 19. Rxb2 {[%clk
0:01:10.5]} 19... Nxd1 {[%clk 0:02:08]} 20. Rd2 {[%clk 0:01:07.2]} 20... Nxe3
{[%clk 0:02:07.7]} 21. fxe3 {[%clk 0:01:07.5]} 21... e6 {[%clk 0:02:05.4]} 22.
Rd7 {[%clk 0:01:06.5]} 22... b5 {[%clk 0:02:01.5]} 23. h4 {[%clk 0:00:56]} 23...
h5 {[%clk 0:02:00.8]} 24. Rb7 {[%clk 0:00:44.1]} 24... a6 {[%clk 0:02:00.5]} 25.
g3 {[%clk 0:00:31.6]} 25... Be5 {[%clk 0:01:58.5]} 26. Kg2 {[%clk 0:00:31.1]}
26... Rac8 {[%clk 0:01:55.2]} 27. Ra7 {[%clk 0:00:22.8]} 27... Rc6 {[%clk
0:01:49]} 28. Rd1 {[%clk 0:00:22.8]} 28... Bd6 {[%clk 0:01:33.3]} 29. Rd7 {[%clk
0:00:18.8]} 29... Bc5 {[%clk 0:01:32.9]} 30. Kf3 {[%clk 0:00:17.5]} 30... a5
{[%clk 0:01:32]} 31. a4 {[%clk 0:00:16.5]} 31... bxa4 {[%clk 0:01:31.6]} 32.
Bxa4 {[%clk 0:00:16.5]} 32... Rb6 {[%clk 0:01:32.2]} 33. Rc7 {[%clk 0:00:15.7]}
33... Bd6 {[%clk 0:01:25.3]} 34. Rd7 {[%clk 0:00:15.1]} 34... Be5 {[%clk
0:01:24.8]} 35. Ra7 {[%clk 0:00:13.4]} 35... Bc3 {[%clk 0:01:22.8]} 36. Rdd7
{[%clk 0:00:11.8]} 36... Rb4 {[%clk 0:01:20.6]} 37. Bc2 {[%clk 0:00:11.3]} 37...
Rg4 {[%clk 0:01:18.2]} 38. Bb3 {[%clk 0:00:05.7]} 38... Be1 {[%clk 0:01:17.1]}
39. Ke2 {[%clk 0:00:05.4]} 39... Bxg3 {[%clk 0:01:14.4]} 40. Bxe6 {[%clk
0:00:05.2]} 40... Bxh4 {[%clk 0:01:07.3]} 41. Bxf7+ {[%clk 0:00:04]} 41... Kh8
{[%clk 0:00:48.9]} 42. Bd5 {[%clk 0:00:03.7]} 42... Rg2+ {[%clk 0:00:30.9]} 43.
Kd3 {[%clk 0:00:04]} 43... Be7 {[%clk 0:00:20.6]} 44. Rxe7 {[%clk 0:00:04]}
44... Rd2+ {[%clk 0:00:16.9]} 45. Kxd2 {[%clk 0:00:04]} 45... Rf2+ {[%clk
0:00:17.3]} 46. Kd3 {[%clk 0:00:04.6]} 46... Rd2+ {[%clk 0:00:17.7]} 47. Kxd2
{[%clk 0:00:05.1]} 1-0

[Event "Late-Titled-Tuesday-Blitz-May-28-2024"]
[Site "Chess.com"]
[Date "2024.05.28"]
[Round "11"]
[White "maurovargas01"]
[Black "LUISMIGUELOV"]
[Result "0-1"]
[WhiteElo "1920"]
[BlackElo "2217"]
[TimeControl "180+1"]
[EndTime "16:06:06 PDT"]
[Termination "LUISMIGUELOV won on time"]

1. e4 {[%clk 0:03:00]} 1... c6 {[%clk 0:01:57.6]} 2. Nc3 {[%clk 0:02:48.6]} 2...
d5 {[%clk 0:01:57.8]} 3. d3 {[%clk 0:02:48.2]} 3... dxe4 {[%clk 0:01:55.9]} 4.
Nxe4 {[%clk 0:02:49.1]} 4... Nf6 {[%clk 0:01:55.6]} 5. Ng3 {[%clk 0:02:41.1]}
5... Bg4 {[%clk 0:01:53.9]} 6. f3 {[%clk 0:02:40.5]} 6... Bc8 {[%clk 0:01:52]}
7. Be3 {[%clk 0:02:37.2]} 7... e6 {[%clk 0:01:51.9]} 8. N1e2 {[%clk 0:02:37.2]}
8... Bd6 {[%clk 0:01:52]} 9. Nc3 {[%clk 0:02:34.1]} 9... Qe7 {[%clk 0:01:51]}
10. Nce4 {[%clk 0:02:31.8]} 10... Nxe4 {[%clk 0:01:49.7]} 11. Nxe4 {[%clk
0:02:30.9]} 11... Be5 {[%clk 0:01:47.1]} 12. d4 {[%clk 0:02:27.1]} 12... Bf6
{[%clk 0:01:42.9]} 13. c4 {[%clk 0:02:25.7]} 13... Nd7 {[%clk 0:01:42]} 14. c5
{[%clk 0:02:24.9]} 14... O-O {[%clk 0:01:41.6]} 15. Nd6 {[%clk 0:02:20.7]} 15...
b6 {[%clk 0:01:39.8]} 16. b4 {[%clk 0:02:18.4]} 16... a5 {[%clk 0:01:39.1]} 17.
a3 {[%clk 0:02:16.9]} 17... axb4 {[%clk 0:01:38.8]} 18. axb4 {[%clk 0:02:15.6]}
18... Rxa1 {[%clk 0:01:38.5]} 19. Qxa1 {[%clk 0:02:15]} 19... bxc5 {[%clk
0:01:38.8]} 20. bxc5 {[%clk 0:02:12.8]} 20... Nxc5 {[%clk 0:01:38.8]} 21. Nxc8
{[%clk 0:02:11.3]} 21... Rxc8 {[%clk 0:01:35.1]} 22. Qc1 {[%clk 0:01:55.3]}
22... Nb3 {[%clk 0:01:33]} 23. Qc2 {[%clk 0:01:42.7]} 23... Nxd4 {[%clk
0:01:31.2]} 24. Qc4 {[%clk 0:01:29.7]} 24... Qb4+ {[%clk 0:01:25.2]} 25. Qxb4
{[%clk 0:01:23.9]} 25... Nc2+ {[%clk 0:01:25.1]} 26. Kd2 {[%clk 0:01:20.7]}
26... Nxb4 {[%clk 0:01:25.5]} 27. Bc5 {[%clk 0:01:19.5]} 27... Nd5 {[%clk
0:01:22.8]} 28. Bd3 {[%clk 0:01:15.1]} 28... Be7 {[%clk 0:01:22.3]} 29. Bxe7
{[%clk 0:01:09.4]} 29... Nxe7 {[%clk 0:01:21.3]} 30. Rc1 {[%clk 0:01:09.5]}
30... g6 {[%clk 0:01:20.9]} 31. Ke2 {[%clk 0:01:06.1]} 31... Kg7 {[%clk
0:01:21]} 32. Ba6 {[%clk 0:00:59.3]} 32... Rc7 {[%clk 0:01:20]} 33. Bb5 {[%clk
0:00:57.4]} 33... f5 {[%clk 0:01:19.4]} 34. Ba4 {[%clk 0:00:56.6]} 34... h5
{[%clk 0:01:18.5]} 35. Kd2 {[%clk 0:00:55.7]} 35... Kf6 {[%clk 0:01:18.1]} 36.
Bb3 {[%clk 0:00:53.6]} 36... Nd5 {[%clk 0:01:16.6]} 37. Ba4 {[%clk 0:00:50.8]}
37... c5 {[%clk 0:01:16.3]} 38. Rb1 {[%clk 0:00:40.3]} 38... g5 {[%clk
0:01:12.6]} 39. Rb8 {[%clk 0:00:39.1]} 39... g4 {[%clk 0:01:11.4]} 40. Be8
{[%clk 0:00:35.3]} 40... h4 {[%clk 0:01:10.4]} 41. fxg4 {[%clk 0:00:33.9]} 41...
fxg4 {[%clk 0:01:10]} 42. Bh5 {[%clk 0:00:33.2]} 42... g3 {[%clk 0:01:08.9]} 43.
hxg3 {[%clk 0:00:32.6]} 43... hxg3 {[%clk 0:01:09.1]} 44. Rg8 {[%clk 0:00:31.5]}
44... Nf4 {[%clk 0:01:07.8]} 45. Bf3 {[%clk 0:00:28.6]} 45... Rg7 {[%clk
0:00:58.4]} 46. Rc8 {[%clk 0:00:26]} 46... Rg5 {[%clk 0:00:58]} 47. Kc3 {[%clk
0:00:24.8]} 47... Nd5+ {[%clk 0:00:55.4]} 48. Kb3 {[%clk 0:00:20.4]} 48... Re5
{[%clk 0:00:53.1]} 49. Rxc5 {[%clk 0:00:18.9]} 49... Re3+ {[%clk 0:00:50.1]} 50.
Kc2 {[%clk 0:00:17.9]} 50... Nb4+ {[%clk 0:00:47.6]} 51. Kd2 {[%clk 0:00:16.8]}
51... Ra3 {[%clk 0:00:46.2]} 52. Rb5 {[%clk 0:00:14.8]} 52... Ra2+ {[%clk
0:00:45.2]} 53. Kc3 {[%clk 0:00:14.8]} 53... Nd5+ {[%clk 0:00:41.4]} 54. Bxd5
{[%clk 0:00:12]} 54... exd5 {[%clk 0:00:41.5]} 55. Rxd5 {[%clk 0:00:12.3]} 55...
Rxg2 {[%clk 0:00:41.4]} 56. Kd3 {[%clk 0:00:06]} 56... Rf2 {[%clk 0:00:40.8]}
57. Ke3 {[%clk 0:00:05.1]} 57... Rf1 {[%clk 0:00:39.9]} 0-1

[Event "Late-Titled-Tuesday-Blitz-May-28-2024"]
[Site "Chess.com"]
[Date "2024.05.28"]
[Round "11"]
[White "ImportedItalianMaple"]
[Black "crazy_but_lazy"]
[Result "0-1"]
[WhiteElo "2543"]
[BlackElo "2678"]
[TimeControl "180+1"]
[EndTime "16:06:08 PDT"]
[Termination "crazy_but_lazy won on time"]

1. e4 {[%clk 0:03:00.9]} 1... c6 {[%clk 0:02:59.8]} 2. d4 {[%clk 0:02:56.9]}
2... d5 {[%clk 0:02:59.4]} 3. exd5 {[%clk 0:02:57.4]} 3... cxd5 {[%clk
0:02:59.6]} 4. Bd3 {[%clk 0:02:57.8]} 4... Nc6 {[%clk 0:02:59.1]} 5. c3 {[%clk
0:02:58.2]} 5... Qc7 {[%clk 0:02:59.2]} 6. Ne2 {[%clk 0:02:48.9]} 6... e6 {[%clk
0:02:50.1]} 7. Nd2 {[%clk 0:02:34]} 7... Bd6 {[%clk 0:02:48.5]} 8. Nf3 {[%clk
0:02:34]} 8... Nge7 {[%clk 0:02:48.4]} 9. O-O {[%clk 0:02:33.7]} 9... f6 {[%clk
0:02:39.4]} 10. c4 {[%clk 0:02:27.6]} 10... dxc4 {[%clk 0:02:36.6]} 11. Bxc4
{[%clk 0:02:27.6]} 11... Nd5 {[%clk 0:02:36.9]} 12. Nc3 {[%clk 0:02:10.7]} 12...
Nxc3 {[%clk 0:02:05.4]} 13. bxc3 {[%clk 0:02:10.5]} 13... Ne7 {[%clk 0:01:57.5]}
14. Qb3 {[%clk 0:02:03.2]} 14... O-O {[%clk 0:01:39.7]} 15. Bxe6+ {[%clk
0:01:48.6]} 15... Kh8 {[%clk 0:01:39.7]} 16. Bb2 {[%clk 0:01:40.8]} 16... Ng6
{[%clk 0:01:27.2]} 17. Bxc8 {[%clk 0:01:15]} 17... Raxc8 {[%clk 0:01:27.9]} 18.
g3 {[%clk 0:01:15.4]} 18... Qd7 {[%clk 0:01:20.1]} 19. Rfe1 {[%clk 0:00:58]}
19... Qh3 {[%clk 0:01:00]} 20. Qe6 {[%clk 0:00:55.4]} 20... Qh5 {[%clk
0:00:51.2]} 21. Kg2 {[%clk 0:00:41.7]} 21... Rfd8 {[%clk 0:00:39.9]} 22. c4
{[%clk 0:00:29.7]} 22... Bb4 {[%clk 0:00:36]} 23. Re4 {[%clk 0:00:23.8]} 23...
Nf8 {[%clk 0:00:31.9]} 24. Qh3 {[%clk 0:00:13.1]} 24... Qxh3+ {[%clk 0:00:31.7]}
25. Kxh3 {[%clk 0:00:14]} 25... Rxc4 {[%clk 0:00:32.1]} 26. a3 {[%clk
0:00:11.2]} 26... Bd6 {[%clk 0:00:28.5]} 27. Rd1 {[%clk 0:00:11.3]} 27... Kg8
{[%clk 0:00:21.7]} 28. Kg2 {[%clk 0:00:09.9]} 28... Kf7 {[%clk 0:00:21.1]} 29.
Rd2 {[%clk 0:00:10.2]} 29... Rdc8 {[%clk 0:00:21.2]} 30. Ree2 {[%clk 0:00:09.2]}
30... Nd7 {[%clk 0:00:19.1]} 31. d5 {[%clk 0:00:08.5]} 31... a6 {[%clk
0:00:16.2]} 32. Nd4 {[%clk 0:00:08.7]} 32... g6 {[%clk 0:00:11.1]} 33. Ne6
{[%clk 0:00:08]} 33... b5 {[%clk 0:00:10.7]} 34. f4 {[%clk 0:00:05.9]} 34... a5
{[%clk 0:00:09]} 35. h4 {[%clk 0:00:06.1]} 35... h5 {[%clk 0:00:07.4]} 36. Rd3
{[%clk 0:00:04.5]} 36... a4 {[%clk 0:00:04.4]} 37. Rdd2 {[%clk 0:00:04.5]} 37...
b4 {[%clk 0:00:04.5]} 38. axb4 {[%clk 0:00:04.7]} 38... Bxb4 {[%clk 0:00:05.4]}
39. Rd3 {[%clk 0:00:04.8]} 39... Bd6 {[%clk 0:00:05.2]} 40. Rde3 {[%clk
0:00:03.6]} 40... Rc2 {[%clk 0:00:05.5]} 41. Kf3 {[%clk 0:00:03.8]} 41... Rxe2
{[%clk 0:00:05.3]} 42. Rxe2 {[%clk 0:00:04.7]} 42... a3 {[%clk 0:00:05.2]} 43.
Ba1 {[%clk 0:00:05.4]} 43... Rc1 {[%clk 0:00:05.6]} 44. Bd4 {[%clk 0:00:04.3]}
44... Rd1 {[%clk 0:00:04.8]} 45. Ra2 {[%clk 0:00:04.7]} 45... Nf8 {[%clk
0:00:03.8]} 46. Rc2 {[%clk 0:00:04.6]} 46... Nxe6 {[%clk 0:00:03.2]} 47. dxe6+
{[%clk 0:00:05.5]} 47... Kxe6 {[%clk 0:00:04.1]} 48. Bc5 {[%clk 0:00:05]} 48...
Bxc5 {[%clk 0:00:03.8]} 49. Rxc5 {[%clk 0:00:05.9]} 49... a2 {[%clk 0:00:04.5]}
0-1

[Event "Late-Titled-Tuesday-Blitz-May-28-2024"]
[Site "Chess.com"]
[Date "2024.05.28"]
[Round "11"]
[White "katharinareinecke"]
[Black "Quaide7"]
[Result "1-0"]
[WhiteElo "1969"]
[BlackElo "2120"]
[TimeControl "180+1"]
[EndTime "16:06:11 PDT"]
[Termination "katharinareinecke won on time"]

1. d4 {[%clk 0:03:00.9]} 1... Nf6 {[%clk 0:02:52.9]} 2. Nf3 {[%clk 0:03:00.3]}
2... e6 {[%clk 0:02:51.8]} 3. g3 {[%clk 0:03:00.4]} 3... c5 {[%clk 0:02:49.5]}
4. dxc5 {[%clk 0:03:00]} 4... Na6 {[%clk 0:02:45.5]} 5. Bg2 {[%clk 0:02:58.5]}
5... Nxc5 {[%clk 0:02:42.9]} 6. O-O {[%clk 0:02:57.8]} 6... Be7 {[%clk
0:02:42.8]} 7. c4 {[%clk 0:02:50.4]} 7... O-O {[%clk 0:02:41.6]} 8. b3 {[%clk
0:02:50.2]} 8... b6 {[%clk 0:02:39.1]} 9. Bb2 {[%clk 0:02:49.8]} 9... Bb7 {[%clk
0:02:39.2]} 10. Nbd2 {[%clk 0:02:46.7]} 10... Qc7 {[%clk 0:02:39.1]} 11. Be5
{[%clk 0:02:41.6]} 11... d6 {[%clk 0:02:37.7]} 12. Bb2 {[%clk 0:02:38.5]} 12...
a6 {[%clk 0:02:35.2]} 13. Re1 {[%clk 0:02:38.1]} 13... Rac8 {[%clk 0:02:35.4]}
14. Rc1 {[%clk 0:02:35.9]} 14... Rfd8 {[%clk 0:02:35.8]} 15. b4 {[%clk
0:02:32.2]} 15... Ncd7 {[%clk 0:02:35]} 16. Qb3 {[%clk 0:02:32.7]} 16... d5
{[%clk 0:02:29]} 17. cxd5 {[%clk 0:02:26.7]} 17... Qd6 {[%clk 0:02:20.8]} 18.
dxe6 {[%clk 0:02:21.7]} 18... Qxe6 {[%clk 0:02:20.2]} 19. Qxe6 {[%clk
0:02:19.6]} 19... fxe6 {[%clk 0:02:20.3]} 20. Rxc8 {[%clk 0:02:05.9]} 20... Rxc8
{[%clk 0:02:15.2]} 21. Ne5 {[%clk 0:02:06.1]} 21... Bxg2 {[%clk 0:02:12.2]} 22.
Kxg2 {[%clk 0:02:04]} 22... Rc2 {[%clk 0:02:11.4]} 23. Nxd7 {[%clk 0:02:02]}
23... Nxd7 {[%clk 0:02:11.3]} 24. Bc1 {[%clk 0:01:43.9]} 24... Bxb4 {[%clk
0:02:05.7]} 25. Rd1 {[%clk 0:01:39.9]} 25... Rxa2 {[%clk 0:01:42.9]} 26. Nc4
{[%clk 0:01:36.7]} 26... Nf8 {[%clk 0:01:37.3]} 27. Nxb6 {[%clk 0:01:31.2]}
27... Rxe2 {[%clk 0:01:37.3]} 28. Be3 {[%clk 0:01:25.7]} 28... a5 {[%clk
0:01:35.8]} 29. Rd8 {[%clk 0:01:23.6]} 29... Kf7 {[%clk 0:01:29.9]} 30. Ra8
{[%clk 0:01:18.1]} 30... Ra2 {[%clk 0:01:13.1]} 31. Nc4 {[%clk 0:01:11]} 31...
Nd7 {[%clk 0:01:07.6]} 32. Ra7 {[%clk 0:01:08.4]} 32... Ke7 {[%clk 0:01:02.6]}
33. Bg5+ {[%clk 0:01:07.6]} 33... Ke8 {[%clk 0:00:57.4]} 34. Ra8+ {[%clk
0:00:58.8]} 34... Kf7 {[%clk 0:00:55.6]} 35. Ra7 {[%clk 0:00:59]} 35... Ke8
{[%clk 0:00:53.5]} 36. Ra8+ {[%clk 0:00:59.1]} 36... Kf7 {[%clk 0:00:53.2]} 37.
Ra7 {[%clk 0:00:57.4]} 37... Kg6 {[%clk 0:00:38.3]} 38. h4 {[%clk 0:00:49.7]}
38... Nf6 {[%clk 0:00:25.8]} 39. Ne5+ {[%clk 0:00:39.2]} 39... Kf5 {[%clk
0:00:26.1]} 40. Nc6 {[%clk 0:00:38]} 40... Bc5 {[%clk 0:00:24.8]} 41. Rxa5
{[%clk 0:00:23.9]} 41... Rxf2+ {[%clk 0:00:20.2]} 42. Kh3 {[%clk 0:00:20.5]}
42... Rc2 {[%clk 0:00:16.4]} 43. Nd4+ {[%clk 0:00:19.7]} 43... Ke4 {[%clk
0:00:14]} 44. Nxc2 {[%clk 0:00:19.8]} 44... Nd5 {[%clk 0:00:14.2]} 45. Rxc5
{[%clk 0:00:19.5]} 45... h6 {[%clk 0:00:13.2]} 46. Bd8 {[%clk 0:00:18.8]} 46...
Kd3 {[%clk 0:00:12.3]} 47. Rxd5+ {[%clk 0:00:19.2]} 47... exd5 {[%clk
0:00:12.4]} 48. Nb4+ {[%clk 0:00:18.9]} 48... Kc4 {[%clk 0:00:12.4]} 49. Nxd5
{[%clk 0:00:19.1]} 49... Kxd5 {[%clk 0:00:12.6]} 50. Kg4 {[%clk 0:00:19.6]}
50... Ke6 {[%clk 0:00:13]} 51. Kh5 {[%clk 0:00:19.8]} 51... Kf7 {[%clk
0:00:13.5]} 52. Bc7 {[%clk 0:00:19.1]} 52... Kf8 {[%clk 0:00:12.8]} 53. Be5
{[%clk 0:00:19.1]} 53... Kf7 {[%clk 0:00:12.7]} 54. Bc3 {[%clk 0:00:17.7]} 54...
g6+ {[%clk 0:00:10]} 55. Kxh6 {[%clk 0:00:17.8]} 55... g5 {[%clk 0:00:09.7]} 56.
Kxg5 {[%clk 0:00:17.6]} 1-0